bitfinex-derivatives/quotes_ETHF0:USTF0_20250816
["timestamp","ask_amount","ask_price","bid_price","bid_amount"]
[1755338975213,0.45386,4403.6,4403.5,35.8001]
[1755338975422,0.45386,4403.6,4403.5,62.8791]
[1755338976214,0.45386,4403.6,4403.5,59.764]
[1755338976412,0.45386,4403.6,4403.5,62.8791]
[1755338977120,0.45386,4403.6,4403.5,62.8581]
[1755338977315,0.45386,4403.6,4403.5,34.6628]
[1755338977521,0.45388,4403.4,4403.1,0.10219956]
[1755338977816,3.2078,4403.3,4403.2,30.1421]
[1755338978023,0.45387,4403.5,4403.2,27.4809]
[1755338978216,0.45387,4403.5,4403.3,3.1151]
[1755338978422,0.45387,4403.5,4403.4,3.1151]
[1755338980018,3.2078,4404.3,4403.7,0.7569]
[1755338980218,0.45383,4403.9,4403.8,30.1271]
[1755338980623,0.45389,4403.4,4403.2,0.7569]
[1755338980822,0.45387,4403.5,4403.4,2.3582]
[1755338981016,1.1862,4403.7,4403.4,2.3582]
[1755338981017,0.45386,4403.7,4403.5,0.7569]
[1755338981322,0.45386,4403.7,4403.3,26.992]
[1755338981323,0.45386,4403.7,4403.6,30.1051]
[1755338981521,0.45383,4403.9,4403.7,3.1151]
[1755338981721,0.45383,4403.9,4403.8,3.1151]
[1755338983420,0.45382,4404.0,4403.8,3.1151]
[1755338983619,0.45382,4404.0,4403.9,30.0851]
[1755338983816,0.45382,4404.0,4403.9,30.0681]
[1755338984320,3.2078,4404.3,4403.9,26.953]
[1755338984524,0.45379,4404.3,4404.1,3.1151]
[1755338984824,0.45378,4404.4,4404.3,3.1151]
[1755338985720,3.66153,4404.9,4404.2,26.943]
[1755338985920,0.45377,4404.5,4404.4,1.9778]
[1755338986127,1.63997,4404.5,4404.4,1.9778]
[1755338986425,1.63997,4404.5,4404.4,28.8948]
[1755338987017,1.63997,4404.5,4404.4,1.9778]
[1755338987219,1.63997,4404.5,4404.4,28.8848]
[1755338988118,1.63997,4404.5,4404.4,1.9778]
[1755338988322,1.63997,4404.5,4404.4,30.0211]
[1755338989026,2.95277,4404.5,4404.4,30.0211]
[1755338990826,0.45381,4404.1,4404.0,33.4574]
[1755338991021,2.93071,4404.1,4404.0,62.8366]
[1755338991223,2.93071,4404.1,4404.0,62.8236]
[1755338991625,1.76891,4404.1,4404.0,62.8236]
[1755338991927,0.45381,4404.1,4404.0,62.8236]
[1755338992229,2.93071,4404.1,4404.0,35.9706]
[1755338992428,2.93071,4404.1,4404.0,62.8216]
[1755338993022,2.93071,4404.1,4404.0,35.9706]
[1755338993224,3.52811,4404.1,4404.0,59.521]
[1755338993424,3.52811,4404.1,4404.0,60.2844]
[1755338993719,3.52811,4404.1,4404.0,61.5931]
[1755338993928,3.52811,4404.1,4404.0,59.52]
[1755338994229,2.93351,4404.1,4404.0,61.5931]
[1755338994724,2.93351,4404.1,4404.0,59.514]
[1755338994725,3.52811,4404.1,4404.0,59.514]
[1755338994932,3.52811,4404.1,4404.0,59.498]
[1755338995227,3.52811,4404.1,4404.0,60.2614]
[1755338995623,3.52811,4404.1,4404.0,34.7671]
[1755338996026,0.45381,4404.1,4404.0,62.7646]
[1755338996524,2.93241,4404.1,4404.0,61.5611]
[1755338996723,2.93071,4404.1,4404.0,62.7646]
[1755338996924,3.2078,4404.4,4404.3,2.1255]
[1755338997124,0.45378,4404.4,4404.3,32.1901]
[1755338997329,2.93238,4404.4,4404.3,2.0731]
[1755338997524,0.45377,4404.5,4404.3,31.3716]
[1755338997723,0.45377,4404.5,4404.4,5.4021]
[1755338998325,1.76887,4404.5,4404.4,5.4021]
[1755338998525,2.93347,4404.5,4404.4,2.5898]
[1755338998725,2.93347,4404.5,4404.4,3.3971]
[1755338998926,3.52807,4404.5,4404.4,2.5898]
[1755338999128,3.52807,4404.5,4404.4,26.756]
[1755338999321,2.93237,4404.5,4404.4,28.8291]
[1755338999526,2.93347,4404.5,4404.4,30.9476]
[1755338999927,2.93237,4404.5,4404.4,32.1511]
[1755339000126,0.45377,4404.5,4404.4,32.1511]
[1755339000326,4.93669,4405.1,4404.4,32.1511]
[1755339000327,3.66151,4405.1,4405.0,2.1255]
[1755339000528,3.83575362,4405.1,4405.0,32.1331]
[1755339000726,3.66151,4405.1,4405.0,32.1331]
[1755339001323,4.82331,4405.1,4405.0,32.1331]
[1755339001524,0.45371,4405.1,4405.0,32.1331]
[1755339001731,0.4537,4405.2,4405.1,5.4021]
[1755339002026,0.4537,4405.2,4405.0,26.731]
[1755339002027,6.14112,4405.9,4405.8,1.324]
[1755339002230,6.31256903,4405.9,4405.8,31.3146]
[1755339002437,3.83566903,4405.9,4405.8,31.3146]
[1755339002626,0.45361,4406.1,4405.8,31.76822]
[1755339002827,0.45359,4406.3,4406.1,3.2766]
[1755339003022,2.13663,4405.8,4405.7,5.4021]
[1755339003328,2.93333,4405.8,4405.7,2.0731]
[1755339003525,0.45371,4405.1,4405.0,6.5368]
[1755339003728,1.61551,4405.1,4405.0,33.2268]
[1755339004030,0.45371,4405.1,4405.0,35.2999]
[1755339004231,0.4537,4405.2,4405.1,1.2035]
[1755339004531,0.4537,4405.2,4405.1,5.4021]
[1755339005444,0.4537,4405.2,4405.1,32.0641]
[1755339006127,2.9306,4405.2,4405.1,5.4021]
[1755339006322,2.9334,4405.2,4405.1,30.8596]
[1755339006831,2.9334,4405.2,4405.1,30.8436]
[1755339007032,2.9323,4405.2,4405.1,32.0471]
[1755339007630,0.4537,4405.2,4405.1,32.0471]
[1755339008526,0.4537,4405.2,4405.1,27.4084]
[1755339008731,2.9334,4405.2,4405.1,29.9216]
[1755339008933,2.9334,4405.2,4405.1,26.645]
[1755339009133,2.9334,4405.2,4405.1,27.9251]
[1755339009433,2.9334,4405.2,4405.1,32.0471]
[1755339009434,2.9323,4405.2,4405.1,32.0471]
[1755339009937,2.9306,4405.2,4405.1,32.0471]
[1755339010332,0.4537,4405.2,4405.1,32.0471]
[1755339012328,0.9749,4405.2,4405.1,5.4021]
[1755339012533,2.9334,4405.2,4405.1,5.4021]
[1755339012836,2.9334,4405.2,4405.1,30.7696]
[1755339013131,3.528,4405.2,4405.1,2.0731]
[1755339013337,2.9323,4405.2,4405.1,29.8406]
[1755339013538,0.4537,4405.2,4405.1,29.8406]
[1755339014738,2.9306,4405.2,4405.1,31.9421]
[1755339014940,2.9323,4405.2,4405.1,4.1986]
[1755339015140,2.9334,4405.2,4405.1,30.7356]
[1755339016137,2.9334,4405.2,4405.1,31.9391]
[1755339016335,3.528,4405.2,4405.1,29.9291]
[1755339016638,3.528,4405.2,4405.1,28.6194]
[1755339016838,3.528,4405.2,4405.1,2.0874]
[1755339017039,3.528,4405.2,4405.1,28.0767]
[1755339017340,3.528,4405.2,4405.1,27.2694]
[1755339017641,1.1344,4404.6,4404.2,1.3097]
[1755339017832,2.4797,4404.6,4404.5,4.1986]
[1755339018035,1.77055,4404.6,4404.3,26.496]
[1755339018233,2.4797,4404.4,4404.3,26.496]
[1755339018435,2.4797,4404.4,4404.0,34.0037]
[1755339018436,1.3168,4404.1,4404.0,34.0037]
[1755339018636,0.45378,4404.3,4404.2,4.6754]
[1755339019039,0.45518,4404.3,4404.2,5.4105]
[1755339019238,0.45378,4404.3,4404.2,5.4105]
[1755339020739,1.80188,4404.3,4404.2,5.4105]
[1755339021042,2.95798,4404.3,4404.2,30.662]
[1755339021239,2.95798,4404.3,4404.2,26.483]
[1755339021435,4.34208,4405.0,4404.1,0.7351]
[1755339021436,2.5042,4404.2,4404.1,0.7351]
[1755339021742,3.0987,4404.2,4404.1,27.1821]
[1755339021932,3.0987,4404.2,4404.0,32.694]
[1755339022241,3.0987,4403.2,4403.1,0.10219956]
[1755339022441,1.9449,4403.2,4402.4,32.688]
[1755339022640,2.5042,4402.5,4402.4,33.4231]
[1755339022941,2.5033,4402.5,4402.4,62.3666]
[1755339023332,2.5042,4402.5,4402.4,62.3666]
[1755339023542,2.5033,4402.5,4402.4,62.3666]
[1755339023839,1.7492,4402.5,4402.4,26.433]
[1755339024036,1.1538,4402.4,4401.9,2.0141]
[1755339024237,0.0009,4402.2,4402.0,2.0141]
[1755339024444,0.5945,4402.2,4402.0,28.4251]
[1755339024643,1.1547,4402.1,4402.0,28.4251]
[1755339025243,1.1538,4402.1,4402.0,29.6566]
[1755339025447,1.1538,4402.1,4402.0,28.4251]
[1755339025637,0.0009,4402.5,4402.0,29.6566]
[1755339025833,3.2078,4402.8,4402.2,2.0141]
[1755339026140,3.2078,4403.4,4402.6,2.5105]
[1755339026342,1.1547,4403.3,4402.7,26.392]
[1755339026537,0.7599,4403.2,4402.7,26.392]
[1755339026738,3.2078,4403.4,4402.7,26.392]
[1755339026941,1.9146,4403.3,4402.4,3.2078]
[1755339027144,1.9146,4403.1,4402.5,26.378]
[1755339027337,3.9677,4402.9,4402.3,1.279]
[1755339027540,1.9146,4402.7,4402.6,26.373]
[1755339028241,0.45396,4402.6,4402.3,1.279]
[1755339028537,1.9146,4402.5,4402.4,26.363]
[1755339028742,1.9146,4402.5,4402.4,27.642]
[1755339029138,1.1538,4402.5,4402.4,29.6086]
[1755339029338,0.45396,4402.6,4402.5,3.2456]
[1755339030742,0.45395,4402.7,4402.5,2.5105]
[1755339031046,0.45395,4402.7,4402.6,3.2456]
[1755339031443,0.45391,4403.1,4402.7,1.279]
[1755339031741,0.45383,4403.8,4403.3,0.45389]
[1755339031941,0.45383,4403.8,4403.7,3.2078]
[1755339032136,0.45383,4403.8,4403.7,32.7714]
[1755339032339,1.89431,4404.6,4403.7,32.7714]
[1755339032340,0.45383,4403.9,4403.7,32.7714]
[1755339032537,1.1538,4404.3,4403.7,32.7714]
[1755339032538,0.45382,4404.0,4403.8,29.5566]
[1755339032736,0.45382,4404.0,4403.9,3.2456]
[1755339033237,2.36842,4404.0,4403.9,1.279]
[1755339033442,2.36842,4404.0,4403.9,26.301]
[1755339033646,0.45385,4403.6,4403.5,3.2456]
[1755339033945,0.45385,4403.6,4403.5,29.5456]
[1755339034344,26.31,4407.6,4403.7,0.45384]
[1755339034345,0.5538,4404.2,4403.7,0.45384]
[1755339034544,1.13408,4405.8,4404.7,0.45374]
[1755339034744,1.13413,4405.6,4405.1,3.2078]
[1755339035048,1.1538,4405.4,4405.3,3.2456]
[1755339035248,5.2224,4405.4,4405.3,26.28]
[1755339035442,5.2224,4405.4,4405.3,1.279]
[1755339035643,4.81527,4405.4,4405.3,1.279]
[1755339035843,4.81527,4405.4,4405.3,29.5116]
[1755339036045,0.45367,4405.4,4405.3,29.5116]
[1755339036247,1.60747,4405.4,4405.3,29.5116]
[1755339036548,1.60747,4405.4,4404.9,2.5105]
[1755339036549,1.60751,4405.0,4404.9,2.5105]
[1755339036750,1.60751,4405.0,4404.9,28.7685]
[1755339036950,1.60751,4405.0,4404.9,29.5036]
[1755339037148,1.60751,4405.0,4404.9,29.4946]
[1755339037349,2.46831,4405.0,4404.9,1.279]
[1755339037547,0.45371,4405.0,4404.9,29.4896]
[1755339038048,0.45369,4405.2,4405.0,3.2456]
[1755339038350,0.45369,4405.2,4405.1,3.2456]
[1755339039647,0.45375,4404.6,4404.5,4.4393]
[1755339039848,0.45375,4404.6,4404.5,30.6663]
[1755339040254,0.45375,4404.6,4404.5,32.6804]
[1755339040458,0.45375,4404.6,4404.5,6.4534]
[1755339040650,0.45375,4404.6,4404.5,32.6594]
[1755339040844,0.45375,4404.7,4404.5,30.6838]
[1755339041049,0.8608,4405.3,4404.7,3.2456]
[1755339041350,0.45374,4404.8,4404.7,1.9666]
[1755339041854,0.45374,4404.8,4404.7,3.2456]
[1755339042153,2.46834,4404.8,4404.7,28.1991]
[1755339042556,1.21364,4404.8,4404.7,26.178]
[1755339042749,1.21364,4404.8,4404.7,28.1921]
[1755339042951,1.21364,4404.8,4404.7,28.1821]
[1755339043151,2.46834,4404.8,4404.7,28.1821]
[1755339043350,2.46834,4404.8,4404.7,27.447]
[1755339044051,1.60754,4404.8,4404.7,29.4136]
[1755339044756,0.45374,4404.8,4404.7,29.4136]
[1755339045152,1.60754,4404.8,4404.7,3.2456]
[1755339045450,1.60754,4404.8,4404.7,29.4096]
[1755339045650,0.45374,4404.8,4404.7,29.4096]
[1755339046958,1.60755,4404.6,4404.5,5.2219]
[1755339047254,1.60755,4404.6,4404.5,32.5674]
[1755339048350,2.0146,4404.6,4404.3,32.699]
[1755339048555,2.48727,4404.4,4404.3,32.699]
[1755339048756,2.48727,4404.4,4404.3,58.79]
[1755339049357,1.13449,4404.3,4403.8,1.2927]
[1755339049553,1.178,4403.9,4403.8,2.09]
[1755339049753,1.178,4403.9,4403.8,29.2977]
[1755339049948,1.63182,4403.9,4403.8,29.2967]
[1755339050154,0.45382,4403.9,4403.8,3.2197]
[1755339050354,0.45382,4403.9,4403.8,29.2897]
[1755339050556,2.48462,4403.9,4403.8,29.2897]
[1755339050758,2.48462,4403.9,4403.8,28.157]
[1755339050958,2.48462,4403.9,4403.8,27.3597]
[1755339051657,0.45385,4403.6,4403.5,3.2078]
[1755339051858,1.72965,4403.6,4403.5,32.4805]
[1755339052059,1.63185,4403.6,4403.5,32.4805]
[1755339052259,0.45385,4403.6,4403.5,32.4805]
[1755339054460,1.63185,4403.6,4403.5,32.4805]
[1755339055355,0.45385,4403.6,4403.5,32.4805]
[1755339056357,1.63185,4403.6,4403.5,32.4805]
[1755339056554,2.87625,4403.6,4403.5,32.4805]
[1755339059263,1.69825,4403.6,4403.5,32.4805]
[1755339059462,0.95815,4403.6,4403.5,32.4805]
[1755339060461,3.66159,4404.2,4404.1,5.3372]
[1755339060655,3.66159,4404.2,4404.1,31.2962]
[1755339060854,3.2078,4404.2,4404.1,31.2962]
[1755339061359,3.66159,4404.2,4404.1,31.2962]
[1755339061762,3.66159,4404.2,4404.1,5.3372]
[1755339062068,3.66159,4404.2,4404.1,31.2602]
[1755339062259,3.66159,4404.2,4404.1,31.2562]
[1755339062966,3.66159,4404.2,4404.1,31.2512]
[1755339063464,5.8994,4404.2,4403.8,2.4224]
[1755339063761,3.2078,4404.2,4403.8,1.2927]
[1755339063965,0.45385,4403.6,4403.5,3.2078]
[1755339064264,0.45385,4403.6,4403.5,29.1048]
[1755339064570,0.45385,4403.6,4403.5,32.3245]
[1755339064961,3.2078,4404.2,4403.7,3.2197]
[1755339065168,3.2078,4404.2,4403.9,3.2197]
[1755339065371,3.66159,4404.2,4404.1,3.2197]
[1755339065563,0.45379,4404.2,4404.1,3.2197]
[1755339066564,0.45379,4404.2,4404.1,29.0827]
[1755339068670,1.63179,4404.2,4404.1,29.0827]
[1755339068868,3.62089,4404.2,4404.1,25.837]
[1755339070970,2.86592,4403.9,4403.7,1.2927]
[1755339071167,3.62092,4403.9,4403.8,25.802]
[1755339071368,3.62092,4403.9,4403.7,1.2927]
[1755339071673,5.2737,4403.8,4403.7,4.2075]
[1755339071877,4.5187,4403.8,4403.7,31.1342]
[1755339072364,5.2737,4403.8,4403.7,31.1342]
[1755339072568,5.2737,4403.8,4403.7,5.3372]
[1755339072863,5.2737,4403.8,4403.7,31.1192]
[1755339073377,5.2737,4403.8,4403.7,31.1092]
[1755339073575,2.1066,4403.6,4403.5,4.2075]
[1755339073773,5.2737,4403.6,4403.5,29.9795]
[1755339074077,5.2737,4403.6,4403.5,27.0631]
[1755339074276,5.2737,4403.6,4403.5,29.1531]
[1755339074477,4.5187,4403.6,4403.5,30.2828]
[1755339074671,0.45384,4403.7,4403.6,5.3372]
[1755339076979,2.99834,4403.7,4403.6,5.3372]
[1755339077178,4.97254,4403.7,4403.6,5.3372]
[1755339077981,5.72754,4403.7,4403.6,2.0884]
[1755339078168,4.97254,4403.7,4403.6,5.3372]
[1755339078980,5.77004,4403.7,4403.6,5.3372]
[1755339079181,5.77004,4403.7,4403.6,4.2075]
[1755339079479,5.77004,4403.7,4403.6,25.697]
[1755339079674,5.77004,4403.7,4403.6,26.9968]
[1755339079874,5.77004,4403.7,4403.6,28.2117]
[1755339080274,0.95814,4403.7,4403.6,28.2117]
[1755339080475,0.98324,4403.7,4403.6,29.4086]
[1755339080779,5.80934,4403.7,4403.6,28.2117]
[1755339081079,5.01184,4403.7,4403.6,29.4086]
[1755339083879,3.77304,4403.7,4403.6,29.4086]
[1755339084080,0.45384,4403.7,4403.6,29.4086]
[1755339084484,0.45384,4403.8,4403.6,26.2008]
[1755339084780,0.45384,4403.8,4403.7,5.3233]
[1755339085484,0.98324,4403.8,4403.7,4.1264]
[1755339085685,5.01189,4403.2,4403.1,0.10219956]
[1755339085983,5.80939,4403.2,4403.1,25.71719956]
[1755339086378,5.80939,4403.2,4403.1,27.83269956]
[1755339086573,5.01189,4403.2,4403.1,31.04049956]
[1755339086781,5.01189,4403.2,4403.1,28.62869956]
[1755339086980,5.80939,4403.2,4403.1,29.84359956]
[1755339087281,5.80939,4403.2,4403.1,31.04049956]
[1755339087782,5.80939,4403.2,4403.1,25.71719956]
[1755339088374,5.80939,4403.2,4403.1,0.10219956]
[1755339088580,9.01719,4403.2,4403.1,24.34969956]
[1755339089179,1.13481,4402.9,4401.7,1.2149]
[1755339089381,0.98344,4401.8,4401.7,5.3233]
[1755339089578,3.14414,4401.8,4401.7,30.8923]
[1755339089885,3.94164,4401.8,4401.7,30.8923]
[1755339090186,2.88774,4401.8,4401.7,30.0727]
[1755339090686,0.45404,4401.8,4401.7,30.0727]
[1755339090882,3.04554,4401.8,4401.7,30.8753]
[1755339091181,3.94164,4401.8,4401.7,25.55]
[1755339091481,3.94164,4401.8,4401.5,4.0274]
[1755339091482,3.4876,4401.6,4401.5,4.0274]
[1755339091786,2.4337,4401.6,4401.5,32.7772]
[1755339091981,1.2872,4401.6,4401.5,32.7772]
[1755339092175,2.4337,4401.6,4401.5,34.0701]
[1755339092380,3.4876,4401.6,4401.5,28.7428]
[1755339092585,0.45416,4400.6,4400.5,5.3233]
[1755339092785,0.45416,4400.6,4400.5,30.8573]
[1755339093487,0.45416,4400.6,4400.5,5.3233]
[1755339093686,0.45416,4400.6,4400.5,30.8513]
[1755339094483,0.45416,4400.6,4400.5,5.3233]
[1755339094684,0.45412,4401.0,4400.9,2.1155]
[1755339094886,0.45419,4400.4,4400.2,3.2078]
[1755339095086,0.45419,4400.4,4400.3,28.0217]
[1755339095389,0.45419,4400.4,4400.3,2.5147]
[1755339095593,0.45419,4400.4,4400.3,29.2126]
[1755339095792,0.45419,4400.4,4400.3,28.0157]
[1755339096085,1.13541,4400.6,4399.8,33.498]
[1755339096285,3.2078,4400.3,4399.8,33.498]
[1755339096488,0.4542,4400.2,4399.9,25.492]
[1755339096679,1.13526,4401.2,4400.1,3.2078]
[1755339096885,3.2078,4400.8,4400.3,3.2078]
[1755339097084,0.45415,4400.7,4400.5,3.2078]
[1755339097286,0.45421,4400.2,4399.8,36.36404]
[1755339097592,0.45418,4400.5,4399.9,25.93623]
[1755339097792,0.45418,4400.5,4400.0,3.2078]
[1755339097989,0.45418,4400.5,4400.1,1.9929]
[1755339098192,0.45418,4400.5,4400.3,2.0109]
[1755339098398,0.4542,4400.3,4399.8,36.36404]
[1755339098587,3.2078,4400.8,4399.9,25.468]
[1755339098792,3.2078,4400.8,4400.7,3.2078]
[1755339098997,3.2078,4400.8,4400.7,28.6718]
[1755339099389,3.2078,4400.8,4400.7,3.2078]
[1755339099696,3.2078,4400.8,4400.7,0.796]
[1755339099891,0.45416,4400.6,4400.4,0.796]
[1755339100092,0.45416,4400.6,4400.5,25.452]
[1755339100493,0.45421,4400.1,4400.0,2.4118]
[1755339100691,0.45421,4400.1,4400.0,27.8538]
[1755339100893,0.45421,4400.1,4400.0,27.8518]
[1755339101092,0.45421,4400.1,4400.0,28.6478]
[1755339101394,0.45421,4400.1,4400.0,28.6418]
[1755339101994,0.4542,4400.3,4400.1,2.0109]
[1755339102191,0.4542,4400.3,4400.2,1.9929]
[1755339102395,0.4542,4400.3,4400.2,3.2078]
[1755339102595,0.4542,4400.3,4400.2,28.6268]
[1755339103194,3.2078,4400.8,4400.3,2.4118]
[1755339103400,3.2078,4400.8,4400.3,3.2078]
[1755339103697,3.2078,4400.8,4400.3,0.45419]
[1755339103897,3.2078,4400.8,4400.4,2.4118]
[1755339104102,0.45415,4400.7,4400.6,2.4118]
[1755339104400,3.2078,4400.8,4400.6,3.2078]
[1755339104599,3.2078,4400.8,4400.5,25.408]
[1755339104600,0.45415,4400.7,4400.5,25.408]
[1755339104995,3.2078,4400.8,4400.5,25.408]
[1755339105294,3.2078,4400.8,4400.7,3.2078]
[1755339105502,0.45411,4401.1,4400.9,2.0109]
[1755339105693,0.45411,4401.1,4401.0,3.2078]
[1755339105901,1.64961,4401.1,4401.0,27.3929]
[1755339106197,2.44711,4401.1,4401.0,27.3929]
[1755339106399,1.64961,4401.1,4401.0,27.3929]
[1755339107796,1.64961,4401.1,4401.0,2.0109]
[1755339107992,0.45416,4400.6,4400.5,2.0109]
[1755339108194,1.64966,4400.6,4400.5,28.5628]
[1755339108602,1.64966,4400.6,4400.5,28.5588]
[1755339108801,1.64966,4400.6,4400.5,27.3619]
[1755339109096,1.54019,4400.3,4400.2,2.0897]
[1755339109301,2.30159,4400.3,4400.2,27.4317]
[1755339109504,2.30159,4400.3,4400.2,2.0897]
[1755339109703,2.30163,4399.9,4399.8,34.7917]
[1755339109899,2.30163,4399.9,4399.8,60.1277]
[1755339110493,2.30163,4399.9,4399.8,32.702]
[1755339110704,2.30163,4399.9,4399.8,25.325]
[1755339111204,1.8474,4399.3,4399.2,3.2078]
[1755339111400,0.45429,4399.4,4399.3,3.2123]
[1755339111599,1.53609,4399.4,4399.3,3.2123]
[1755339111799,1.8474,4399.3,4399.2,3.2078]
[1755339112100,1.8474,4399.3,4399.2,28.5188]
[1755339112293,1.0818,4398.6,4398.2,3.2078]
[1755339112498,0.45442,4398.2,4398.0,1.3037]
[1755339112694,1.0818,4398.2,4397.7,3.2078]
[1755339112898,0.45442,4398.1,4397.8,25.301]
[1755339113299,0.45442,4398.1,4398.0,3.2123]
[1755339113496,1.0818,4398.5,4397.9,1.1226]
[1755339113702,0.4544,4398.3,4398.2,3.2123]
[1755339113902,0.4544,4398.3,4398.2,28.5023]
[1755339114098,0.0042,4398.6,4398.2,25.289]
[1755339114407,0.45444,4398.0,4397.9,2.4263]
[1755339114702,0.45439,4398.4,4398.3,0.786]
[1755339114897,0.45439,4398.4,4397.9,25.284]
[1755339114898,0.45444,4398.0,4397.7,3.2078]
[1755339115102,0.45449,4397.4,4397.2,35.9268]
[1755339115304,0.0042,4397.3,4397.2,3.2078]
[1755339115494,0.0042,4397.3,4397.2,30.5685]
[1755339115696,0.45449,4397.4,4397.3,2.0897]
[1755339116305,0.7656,4397.3,4397.2,3.2078]
[1755339116604,3.2078,4396.8,4393.7,1.3037]
[1755339116796,3.2078,4394.8,4393.5,2.0897]
[1755339116997,3.2078,4394.8,4394.6,0.45478]
[1755339117198,3.2078,4396.0,4394.8,3.2123]
[1755339117502,0.45465,4395.9,4395.1,0.45473]
[1755339117705,0.45465,4395.9,4395.2,3.2078]
[1755339117899,0.45469,4395.5,4395.4,2.0897]
[1755339118102,0.45469,4395.5,4395.4,26.034]
[1755339118409,3.2078,4395.5,4393.6,3.2078]
[1755339118699,3.2078,4393.9,4393.8,0.786]
[1755339119104,3.2078,4393.9,4393.8,26.035]
[1755339119407,3.2078,4393.9,4393.8,28.4613]
[1755339119605,3.2078,4393.9,4393.8,2.0897]
[1755339119908,3.2078,4393.9,4393.8,26.028]
[1755339120097,3.2078,4393.9,4393.5,0.786]
[1755339120408,3.66259,4394.5,4393.7,2.4263]
[1755339120606,3.66259,4394.5,4393.6,0.45488]
[1755339120607,3.2078,4394.5,4394.4,1.3037]
[1755339120802,3.2078,4394.5,4394.4,28.4453]
[1755339121104,3.2078,4394.5,4394.4,3.2123]
[1755339121406,0.45494,4393.2,4392.9,9.0217]
[1755339121597,3.2078,4394.1,4393.3,1.1226]
[1755339121905,3.66264,4394.1,4394.0,3.2123]
[1755339122203,0.45476,4394.8,4394.0,26.3566]
[1755339122508,1.53655,4394.9,4394.0,26.81144]
[1755339122706,1.53655,4394.9,4394.2,2.0897]
[1755339122908,1.0818,4394.9,4394.3,0.45481]
[1755339123205,3.66254,4395.0,4393.8,3.2078]
[1755339123206,0.45482,4394.2,4393.8,1.3037]
[1755339123397,3.9692,4394.5,4393.9,25.224]
[1755339123598,3.2078,4394.5,4393.9,26.3466]
[1755339123908,3.66251,4395.3,4394.6,3.2123]
[1755339124104,3.2078,4395.3,4394.9,1.9086]
[1755339124301,0.45467,4395.8,4395.1,3.2123]
[1755339124503,3.2078,4395.9,4395.2,2.54442]
[1755339124701,3.2078,4395.9,4395.7,1.3037]
[1755339124906,3.2078,4395.9,4395.8,2.68832]
[1755339125709,3.2078,4397.1,4395.9,2.0897]
[1755339126004,3.2078,4397.6,4396.5,0.45458]
[1755339126209,3.2078,4397.6,4396.6,26.5127]
[1755339126405,4.4818,4397.1,4396.7,25.205]
[1755339126609,1.0818,4397.0,4396.4,2.0897]
[1755339126807,2.3558,4397.0,4396.8,25.205]
[1755339126999,2.3558,4397.0,4396.4,2.0897]
[1755339127198,5.5636,4396.5,4395.8,1.3037]
[1755339127508,3.1172,4396.4,4395.8,1.3037]
[1755339127697,0.7614,4396.4,4396.0,0.786]
[1755339127901,2.3558,4396.2,4395.9,25.197]
[1755339128098,1.274,4396.9,4396.5,3.2123]
[1755339128401,3.3078,4397.2,4396.6,3.2123]
[1755339128597,3.3078,4397.2,4396.6,2.0897]
[1755339128803,3.2078,4396.7,4396.6,0.786]
[1755339129004,4.2896,4396.7,4396.6,0.786]
[1755339129207,2.3558,4396.6,4395.5,0.786]
[1755339129408,3.2078,4396.0,4395.7,1.1226]
[1755339129603,2.3558,4395.9,4395.8,0.786]
[1755339129808,3.2078,4396.0,4395.4,25.182]
[1755339130013,3.2078,4396.0,4395.6,3.2123]
[1755339130211,3.2078,4396.0,4395.4,25.182]
[1755339130212,3.2078,4396.0,4395.9,3.2123]
[1755339131303,3.2078,4396.0,4395.9,28.3913]
[1755339131607,3.2078,4396.7,4396.5,0.45457]
[1755339131807,3.2078,4396.7,4396.6,3.2123]
[1755339132012,0.1,4397.2,4397.1,1.1226]
[1755339132211,0.1,4397.2,4397.1,31.5881]
[1755339133505,0.1,4397.2,4397.1,28.3733]
[1755339133707,0.1,4397.2,4397.1,31.5811]
[1755339134104,0.1,4397.2,4396.6,3.2078]
[1755339134306,0.1,4397.2,4397.1,28.3683]
[1755339135203,1.1818,4397.2,4397.1,25.942]
[1755339135405,3.2172,4397.2,4397.1,25.156]
[1755339135708,3.67171,4397.2,4397.1,25.149]
[1755339136106,0.1,4397.2,4397.1,28.3613]
[1755339136607,0.1,4397.2,4397.1,3.2123]
[1755339136909,0.1,4397.2,4397.1,28.3463]
[1755339137114,0.1,4397.2,4397.1,28.3453]
[1755339137301,0.1,4397.2,4397.1,31.5531]
[1755339137503,3.66222,4398.1,4397.3,1.3037]
[1755339137707,0.45444,4397.9,4397.6,3.2123]
[1755339137907,0.45444,4397.9,4397.5,2.4263]
[1755339138118,0.45443,4398.0,4397.6,0.45447]
[1755339138310,0.45444,4397.9,4397.7,3.2123]
[1755339138503,3.66223,4398.1,4397.9,3.1543]
[1755339138812,0.45441,4398.2,4398.0,3.1543]
[1755339139115,0.45436,4398.7,4398.2,3.1543]
[1755339139310,3.2078,4398.8,4398.2,2.3613]
[1755339139505,3.66215,4398.8,4398.2,3.1543]
[1755339139709,3.2078,4398.8,4398.6,1.1061]
[1755339140008,3.2078,4398.8,4398.7,27.1632]
[1755339140515,5.6904,4398.8,4398.7,27.1632]
[1755339141309,0.45434,4398.9,4398.7,26.3702]